fUSD/lending_fUSD_20260408
["ID","MTS","AMOUNT","RATE_DAILY","PERIOD"]
[420111885,1775685049211,-500.0,0.00015436,2]
[420111886,1775685049220,-373.1493795,0.00015436,2]
[420111887,1775685049231,-150.0,0.00015436,2]
[420111888,1775685049240,-1778.0,0.00015436,2]
[420111889,1775685049249,-1778.0,0.00015436,2]
[420111890,1775685049259,-1778.0,0.00015436,2]
[420111891,1775685049268,-1778.0,0.00015436,2]
[420111892,1775685049277,-1778.0,0.00015436,2]
[420111893,1775685049286,-1778.0,0.00015436,2]
[420111894,1775685049295,-1778.0,0.00015436,2]
[420111895,1775685049305,-500.0,0.00015436,2]
[420111896,1775685049315,-1778.0,0.00015436,2]
[420111897,1775685049324,-500.0,0.00015436,2]
[420111898,1775685049333,-500.0,0.00015436,2]
[420111899,1775685049343,-1778.0,0.00015436,2]
[420111900,1775685049353,-500.0,0.00015436,2]
[420111901,1775685049362,-500.0,0.00015436,2]
[420111902,1775685049371,-1778.0,0.00015436,2]
[420111903,1775685049381,-500.0,0.00015436,2]
[420111904,1775685049391,-208.03469882,0.00015436,2]
[420111905,1775685049401,-500.0,0.00015436,2]
[420111906,1775685049411,-1778.0,0.00015436,2]
[420111907,1775685049420,-500.0,0.00015436,2]
[420111908,1775685049430,-1778.0,0.00015436,2]
[420111909,1775685049439,-500.0,0.00015436,2]
[420111910,1775685049448,-1778.0,0.00015436,2]
[420111911,1775685049458,-1778.0,0.00015436,2]
[420111912,1775685049468,-500.0,0.00015436,2]
[420111913,1775685049478,-1778.0,0.00015436,2]
[420111914,1775685049487,-500.0,0.00015436,2]
[420111915,1775685049498,-1778.0,0.00015436,2]
[420111916,1775685049507,-500.0,0.00015436,2]
[420111917,1775685049517,-1778.0,0.00015436,2]
[420111918,1775685049527,-500.0,0.00015436,2]
[420111919,1775685049536,-361.74732129,0.00015436,2]
[420111920,1775685049546,-1778.0,0.00015436,2]
[420111921,1775685049555,-1778.0,0.00015436,2]
[420111922,1775685049566,-1778.0,0.00015436,2]
[420111923,1775685049575,-1778.0,0.00015436,2]
[420111924,1775685049585,-1778.0,0.00015436,2]
[420111925,1775685049594,-1778.0,0.00015436,2]
[420111926,1775685049604,-1797.43616336,0.00015436,2]
[420111927,1775685049613,-500.0,0.00015436,2]
[420111928,1775685049622,-500.0,0.00015436,2]
[420111929,1775685049632,-500.0,0.00015436,2]
[420111930,1775685049641,-500.0,0.00015436,2]
[420111931,1775685049651,-500.0,0.00015436,2]
[420111932,1775685049661,-500.0,0.00015436,2]
[420111933,1775685049670,-226.83643244,0.00015436,2]
[420111934,1775685049810,-500.0,0.00015436,2]
[420111935,1775685049820,-150.0,0.00015436,2]
[420111936,1775685049829,-500.0,0.00015436,2]
[420111937,1775685049839,-500.0,0.00015436,2]
[420111938,1775685049848,-500.0,0.00015436,2]
[420111939,1775685049857,-500.0,0.00015436,2]
[420111940,1775685049866,-500.0,0.00015436,2]
[420111941,1775685049876,-500.0,0.00015436,2]
[420111942,1775685049885,-381.23774932,0.00015436,2]
[420111943,1775685049894,-159.3343341,0.00015456,2]
[420111944,1775685049904,-292.34,0.00015465,2]
[420111945,1775685049913,-500.0,0.00015499,2]
[420111946,1775685049923,-500.0,0.00015499,2]
[420111947,1775685049933,-4300.0,0.000155,5]
[420111948,1775685049945,-200.0,0.00015533,2]
[420111949,1775685049962,-181.08010149,0.00015533,2]
[420111950,1775685049981,-1235.18214925,0.00015533,2]
[420111951,1775685049991,-181.08010149,0.00015533,2]
[420111952,1775685050000,-771.01748645,0.00015533,2]
[420111953,1775685050010,-2000.0,0.000156,2]
[420111954,1775685050020,-800.0,0.000156,5]
[420111955,1775685050029,-311.81388462,0.000156,2]
[420111956,1775685050039,-150.0,0.00015606,2]
[420111957,1775685050048,-778.79654162,0.00015616,2]
[420111958,1775685050057,-5888.0,0.00015621,2]
[420111959,1775685050066,-292.34,0.00015677,2]
[420111960,1775685050076,-1045.55288632,0.0001568,2]
[420111961,1775685050085,-162.0,0.0001568,2]
[420111962,1775685050095,-6397.8,0.00015684,2]
[420111963,1775685050104,-173.59,0.00015697,2]
[420111964,1775685050113,-500.0,0.00015699,2]
[420111965,1775685050123,-500.0,0.00015699,2]
[420111966,1775685050132,-500.0,0.00015699,2]
[420111967,1775685050143,-500.0,0.00015699,2]
[420111968,1775685050152,-500.0,0.00015699,2]
[420111969,1775685050161,-500.0,0.00015699,2]
[420111970,1775685050170,-591.46,0.00015699,2]
[420111971,1775685050180,-500.0,0.00015699,2]
[420111972,1775685050189,-500.0,0.00015699,2]
[420111973,1775685050199,-500.0,0.00015699,2]
[420111974,1775685050208,-800.0,0.000157,5]
[420111975,1775685050217,-260.39,0.00015702,2]
[420111976,1775685050227,-436.0,0.00015707,5]
[420111977,1775685050237,-166.66,0.00015712,2]
[420111978,1775685050246,-500.0,0.00015725,2]
[420111979,1775685050256,-500.0,0.00015728,2]
[420111980,1775685050265,-500.0,0.00015728,2]
[420111981,1775685050274,-200.0,0.00015728,2]
[420111982,1775685050284,-800.0,0.000158,5]
[420111983,1775685050294,-2000.0,0.000158,2]
[420111984,1775685050302,-5888.0,0.00015829,2]
[420111985,1775685050311,-1666.66666,0.0001584,2]
[420111986,1775685050321,-1666.66667,0.0001584,2]
[420111987,1775685050330,-1666.66667,0.0001585,2]
[420111988,1775685050340,-292.34,0.00015888,2]
[420111989,1775685050349,-500.0,0.0001589,2]
[420111990,1775685050358,-500.0,0.0001589,2]
[420111991,1775685050367,-500.0,0.0001589,2]
[420111992,1775685050377,-500.0,0.0001589,2]
[420111993,1775685050386,-500.0,0.0001589,2]
[420111994,1775685050396,-500.0,0.0001589,2]
[420111995,1775685050405,-500.0,0.0001589,2]
[420111996,1775685050415,-500.0,0.0001589,2]
[420111997,1775685050424,-500.0,0.0001589,2]
[420111998,1775685050433,-500.0,0.0001589,2]
[420111999,1775685050443,-500.0,0.0001589,2]
[420112000,1775685050453,-500.0,0.0001589,2]
[420112001,1775685050462,-500.0,0.0001589,2]
[420112002,1775685050471,-500.0,0.0001589,2]
[420112003,1775685050480,-500.0,0.0001589,2]
[420112004,1775685050489,-500.0,0.0001589,2]
[420112005,1775685050500,-500.0,0.0001589,2]
[420112006,1775685050509,-500.0,0.0001589,2]
[420112007,1775685050519,-500.0,0.0001589,2]
[420112008,1775685050528,-500.0,0.0001589,2]
[420112009,1775685050537,-500.0,0.0001589,2]
[420112010,1775685050547,-500.0,0.0001589,2]
[420112011,1775685050557,-500.0,0.00015899,2]
[420112012,1775685050567,-24103.83640194,0.000159,3]
[420112013,1775685050576,-197.44336948,0.000159,2]
[420112014,1775685050585,-8769.80296847,0.000159,2]
[420112015,1775685050595,-800.0,0.000159,5]
[420112016,1775685050605,-311.81388462,0.000159,2]
[420112017,1775685050614,-195.57558194,0.000159,2]
[420112018,1775685050624,-195.57558192,0.000159,2]
[420112019,1775685050633,-195.57558192,0.000159,2]
[420112020,1775685050643,-27365.5591906,0.000159,2]
[420112021,1775685050653,-530.11282071,0.000159,2]
[420112022,1775685050663,-320.57819198,0.000159,2]
[420112023,1775685050672,-2000.0,0.000159,2]
[420112024,1775685050681,-250.0,0.0001594,2]
[420112025,1775685050690,-1252.0,0.00015951,2]
[420112026,1775685050698,-153.06,0.0001597,2]
[420112027,1775685050708,-500.0,0.00015973,2]
[420112028,1775685050718,-500.0,0.00015973,2]
[420112029,1775685050727,-500.8742817,0.00015973,2]
[420112030,1775685050736,-500.0,0.00015973,2]
[420112031,1775685050746,-501.46029237,0.00015973,2]
[420112032,1775685050755,-500.0,0.00015973,2]
[420112033,1775685050764,-500.0,0.00015973,2]
[420112034,1775685050774,-500.0,0.00015973,2]
[420112035,1775685050784,-500.0,0.00015973,2]
[420112036,1775685050793,-230.66718579,0.00015973,2]
[420112037,1775685050803,-500.0,0.00015973,2]
[420112038,1775685050812,-362.28838287,0.00015973,2]
[420112039,1775685050821,-500.0,0.00015973,2]
[420112040,1775685050831,-500.0,0.00015973,2]
[420112041,1775685050840,-500.0,0.00015973,2]
[420112042,1775685050849,-500.0,0.00015973,2]
[420112043,1775685050859,-501.12672973,0.00015973,2]
[420112044,1775685050868,-501.03865935,0.00015973,2]
[420112045,1775685050877,-500.0,0.00015973,2]
[420112046,1775685050886,-500.0,0.00015973,2]
[420112047,1775685050895,-500.0,0.00015973,2]
[420112048,1775685050904,-500.0,0.00015973,2]
[420112049,1775685050914,-500.0,0.00015973,2]
[420112050,1775685050922,-500.0,0.00015973,2]
[420112051,1775685050932,-504.71632379,0.00015973,2]
[420112052,1775685050941,-503.55298516,0.00015973,2]
[420112053,1775685050951,-500.0,0.00015973,2]
[420112054,1775685050960,-500.0,0.00015973,2]
[420112055,1775685050969,-244.99358581,0.00015973,2]
[420112056,1775685050978,-500.0,0.00015973,2]
[420112057,1775685050987,-500.0,0.00015973,2]
[420112058,1775685050996,-500.0,0.00015973,2]
[420112059,1775685051005,-202.7425367,0.0001599,2]
[420112060,1775685051014,-151.0,0.00015997,2]
[420112061,1775685051023,-500.0,0.00015999,2]
[420112062,1775685051032,-500.0,0.00015999,2]
[420112063,1775685051042,-500.0,0.00015999,2]
[420112064,1775685051051,-20228.22236448,0.00016,2]
[420112065,1775685052404,-10638.90682346,0.00016,2]
[420112066,1775685052420,-571.82945458,0.00013698,2]
[420112067,1775685052469,-382.94399198,0.00013698,2]
[420112068,1775685052481,-338.89006486,0.00013698,2]
[420112069,1775685052492,-999.0,0.00013698,2]
[420112075,1775686038133,-183.02408197,0.00010779,2]
[420112078,1775686231648,-1483.02344022,0.000107,2]
[420112080,1775686231663,-8223.62134228,0.000107,2]
[420112082,1775686231676,-2793.75804907,0.000107,2]
[420112084,1775686231686,-2081.91591803,0.00010779,2]
[420112086,1775686231696,-199.74,0.00010779,2]
[420112088,1775686231706,-250.0,0.00010839,2]
[420112090,1775686231716,-1200.0,0.00010898,2]
[420112091,1775686231726,-254.0,0.00010898,2]
[420112092,1775686231738,-300.0,0.00010898,2]
[420112093,1775686231748,-1035.51505021,0.00010899,2]
[420112094,1775686231762,-260.03248731,0.00010899,2]
[420112095,1775686231774,-18617.64695254,0.00010899,2]
[420112096,1775686231786,-437.436765,0.00010899,2]
[420112097,1775686231797,-353.5,0.00010899,2]
[420112098,1775686231809,-6608.37891665,0.00010899,2]
[420112099,1775686231821,-361.85356594,0.00010899,2]
[420112100,1775686231921,-699.0,0.00010899,2]
[420112102,1775686231933,-759.47013845,0.00010899,2]
[420112104,1775686231946,-643.82857995,0.00010899,2]
[420112111,1775686237692,-3403.49524395,0.00010899,2]
[420112112,1775686237703,-461.29245958,0.000109,2]
[420112113,1775686237894,-5192.74264021,0.000109,2]
[420112114,1775686237904,-500.0,0.00010973,2]
[420112115,1775686237914,-150.0,0.00010997,2]
[420112116,1775686237924,-221.38403303,0.00010998,2]
[420112117,1775686237933,-35.06724764,0.00010998,2]
[420112118,1775686237946,-315.043,0.00010998,2]
[420112119,1775686237957,-149.88975236,0.00010998,2]
[420112120,1775686237967,-500.0,0.00010998,2]
[420112121,1775686237976,-155.47876287,0.00010998,2]
[420112122,1775686237987,-192.55044073,0.00010998,2]
[420112123,1775686237999,-307.44955927,0.00010998,2]
[420112124,1775686238008,-447.51976029,0.00010998,2]
[420112125,1775686238020,-97.58216322,0.00010998,2]
[420112126,1775686238029,-150.0,0.00010998,2]
[420112127,1775686238039,-500.0,0.00010998,2]
[420112128,1775686238048,-500.0,0.00010998,2]
[420112129,1775686238058,-154.96882312,0.00010998,2]
[420112130,1775686238068,-484.16789184,0.00010998,2]
[420112131,1775686238077,-155.65541845,0.00010998,2]
[420112170,1775686240208,-31.59319255,0.00010998,2]
[420112171,1775686240218,-5193.93614478,0.00010999,2]
[420112176,1775686242913,-10800.0,0.00010999,2]
[420112177,1775686243128,-937.70955075,0.00010999,2]
[420112178,1775686243141,-3028.07956303,0.00010999,2]
[420112179,1775686243158,-603.0,0.00010999,2]
[420112180,1775686243171,-275.0,0.00010999,2]
[420112181,1775686243360,-979.16666667,0.00010999,2]
[420112193,1775686245763,-1349.7868,0.00010999,2]
[420112194,1775686245782,-762.02,0.00010999,2]
[420112204,1775687046257,154.95,5.191e-05,2]
[420112205,1775687090407,-300.0,0.000102,3]
[420112206,1775687249149,-7184.98869971,0.00010158,2]
[420112208,1775687431897,-34536.17130029,0.00010158,2]
[420112209,1775687431909,-5233.0,0.000102,3]
[420112210,1775687431920,-8142.21,0.00010212,2]
[420112211,1775687431931,-200.0,0.00010318,2]
[420112212,1775687431943,-5533.0,0.000105,5]
[420112213,1775687431954,-199.74109049,0.00010681,2]
[420112214,1775687431968,-1811.952,0.00010681,2]
[420112215,1775687431979,-155.74207599,0.000108,2]
[420112216,1775687431990,-1530.32683149,0.000108,2]
[420112217,1775687432001,-1600.0,0.00010837,2]
[420112218,1775687432012,-6971.69893978,0.00010857,2]
[420112219,1775687432025,-1206.94438341,0.00010857,2]
[420112220,1775687432039,-781.51955281,0.00010857,2]
[420112221,1775687432053,-501.52740981,0.00010857,2]
[420112222,1775687432068,-1037.75340511,0.00010857,2]
[420112223,1775687432083,-3319.77029272,0.00010857,2]
[420112225,1775687432096,-15194.15285195,0.00010857,2]
[420112227,1775687432110,-296.5038554,0.00010857,2]
[420112232,1775687432435,-406.80539071,0.00010857,2]
[420112234,1775687437934,-7040.79075393,0.00010737,2]
[420112235,1775687437946,-2275.98803234,0.00010737,2]
[420112237,1775687438175,-2041.44350403,0.00010737,2]
[420112239,1775687438187,-1037.77,0.00010737,2]
[420112241,1775687438199,-580.24362,0.00010737,2]
[420112243,1775687438211,-14619.42564278,0.00010737,2]
[420112245,1775687438223,-618.6790189,0.00010737,2]
[420112247,1775687438236,-2066.80502802,0.00010737,2]
[420112249,1775687438246,-563.77063421,0.00010857,2]
[420112252,1775687438258,-761.54763055,0.00010857,2]
[420112254,1775687438270,-5815.54698681,0.00010857,2]
[420112388,1775687440121,-2048.23499573,0.00010857,2]
[420112389,1775687440357,-16339.72992309,0.00010857,2]
[420112390,1775687440774,-160448.66570784,0.00010857,2]
[420112401,1775687443006,-335.04991627,0.00010857,2]
[420112402,1775687443040,-100.98297009,0.00010857,2]
[420112403,1775687443278,-783.99,0.00010857,2]
[420112419,1775687445780,-274.60000001,0.00010857,2]
[420112420,1775687446815,-7431.2141847,0.00010857,2]
[420112421,1775687446826,-500.0,0.00010873,2]
[420112422,1775687446835,-500.0,0.00010873,2]
[420112423,1775687446845,-233.66702618,0.00010873,2]
[420112424,1775687446855,-151.17441084,0.00010889,2]
[420112425,1775687446864,-500.0,0.00010898,2]
[420112426,1775687446873,-401.63887818,0.00010898,2]
[420112427,1775687446883,-500.0,0.00010898,2]
[420112428,1775687446893,-581.57134646,0.00010898,2]
[420112429,1775687446903,-500.0,0.00010898,2]
[420112430,1775687446913,-493.91752428,0.00010898,2]
[420112431,1775687446923,-9999.99,0.00010898,2]
[420112432,1775687446933,-20283.63753432,0.00010898,2]
[420112433,1775687446962,-493.57371596,0.00010898,2]
[420112437,1775688402100,-152.406,0.00010526,2]
[420112438,1775688432093,-718.49886997,0.00010526,2]
[420112439,1775688445086,-279.15374069,0.00010526,2]
[420112440,1775688462328,169.34,8.435e-05,2]
[420112445,1775688631877,-561.36,0.00010526,2]
[420112446,1775688631998,-638.64,0.00010526,2]
[420112447,1775688632009,-250.0,0.00010527,2]
[420112448,1775688632019,-8614.81750036,0.00010527,2]
[420112449,1775688632031,-700.05,0.00010527,2]
[420112450,1775688632042,-764.99473768,0.00010527,2]
[420112451,1775688632124,-20231.68776196,0.00010527,2]
[420112454,1775688632134,-170.37881708,0.0001053,2]
[420112456,1775688632144,-1852.42,0.00010658,2]
[420112458,1775688632154,-2493.2857,0.000107,2]
[420112460,1775688632163,-31553.86801978,0.00010725,2]
[420112488,1775688637947,-611.85130665,0.00010725,2]
[420112489,1775688638055,-675.85222482,0.00010725,2]
[420112490,1775688638068,-956.79071888,0.00010725,2]
[420112491,1775688638189,-333.277,0.00010725,2]
[420112525,1775688640209,-2087.36072987,0.00010725,2]
[420112526,1775688640219,-700.05,0.000108,2]
[420112527,1775688640228,-151.0,0.00010811,2]
[420112528,1775688640238,-151.0,0.00010811,2]
[420112529,1775688640248,-151.0,0.00010811,2]
[420112530,1775688640257,-150.0,0.00010813,2]
[420112531,1775688640266,-500.0,0.00010813,2]
[420112532,1775688640276,-500.0,0.00010813,2]
[420112533,1775688640286,-500.0,0.00010813,2]
[420112534,1775688640295,-500.0,0.00010813,2]
[420112535,1775688640305,-151.76390015,0.00010813,2]
[420112536,1775688640315,-629.9374137,0.00010814,2]
[420112537,1775688640324,-107433.7626967,0.00010814,2]
[420112538,1775688640333,-77598.6074937,0.00010814,2]
[420112539,1775688640343,-168465.0067733,0.00010814,2]
[420112540,1775688640352,-151.0,0.00010814,2]
[420112541,1775688640362,-151.0,0.00010814,2]
[420112542,1775688640371,-502.204556,0.00010814,2]
[420112543,1775688640380,-502.204556,0.00010814,2]
[420112544,1775688640389,-502.204556,0.00010814,2]
[420112545,1775688640399,-502.204556,0.00010814,2]
[420112546,1775688640408,-151.0,0.00010814,2]
[420112547,1775688640417,-151.0,0.00010814,2]
[420112548,1775688640426,-2947.3971336,0.0001084,2]
[420112549,1775688640435,-134016.5772165,0.0001084,2]
[420112550,1775688640446,-151.0,0.0001084,2]
[420112551,1775688640455,-157.308111,0.0001084,2]
[420112552,1775688640464,-9222.78,0.00010857,2]
[420112553,1775688640474,-151.0,0.00010896,2]
[420112554,1775688640483,-151.0,0.00010897,2]
[420112555,1775688640493,-1032.72554709,0.00010898,3]
[420112556,1775688640502,-200.0,0.00010898,2]
[420112557,1775688640512,-152.0,0.00010898,2]
[420112558,1775688640521,-154.22301552,0.00010898,2]
[420112559,1775688640531,-500.0,0.00010898,2]
[420112560,1775688640540,-151.0,0.00010898,2]
[420112561,1775688640549,-8381.97455748,0.000109,2]
[420112562,1775688640559,-500.0,0.00010959,2]
[420112563,1775688640568,-226.04203092,0.00010959,2]
[420112564,1775688640577,-150.0,0.00010959,2]
[420112565,1775688640586,-1625.22,0.00010959,2]
[420112566,1775688640595,-151.0,0.00010959,2]
[420112567,1775688640605,-151.0,0.00010959,2]
[420112568,1775688640614,-151.0,0.00010959,2]
[420112569,1775688640623,-151.0,0.00010959,2]
[420112570,1775688640634,-500.0,0.00010959,2]
[420112571,1775688640643,-2000.0,0.00010994,2]
[420112572,1775688640653,-200.0,0.00010999,2]
[420112573,1775688640662,-200.0,0.00010999,2]
[420112574,1775688640671,-200.0,0.00011007,2]
[420112575,1775688640680,-169.52746474,0.0001101,2]
[420112576,1775688640689,-257.09994252,0.0001101,2]
[420112577,1775688640699,-500.0,0.0001101,2]
[420112578,1775688640709,-500.0,0.0001101,2]
[420112579,1775688640719,-545.742267,0.0001101,2]
[420112580,1775688640728,-281.14721472,0.0001101,2]
[420112581,1775688640738,-151.0,0.00011096,2]
[420112582,1775688640747,-5407.9477726,0.00011099,2]
[420112583,1775688640756,-6431.71194988,0.00011099,2]
[420112584,1775688640766,-151.0,0.00011099,2]
[420112585,1775688640775,-531.58090884,0.00011107,2]
[420112586,1775688640785,-200.0,0.00011109,2]
[420112587,1775688640795,-200.0,0.00011109,2]
[420112588,1775688640804,-200.0,0.00011117,2]
[420112589,1775688640814,-169.58,0.00011205,2]
[420112590,1775688640823,-200.0,0.0001122,2]
[420112591,1775688640833,-200.0,0.0001122,2]
[420112592,1775688640842,-200.0,0.00011228,2]
[420112593,1775688640852,-152.59,0.00011233,2]
[420112594,1775688640861,-500.0,0.00011233,2]
[420112595,1775688640870,-5407.94777255,0.00011258,2]
[420112596,1775688640880,-6431.71194982,0.00011258,2]
[420112597,1775688640889,-200.0,0.00011332,2]
[420112598,1775688640898,-200.0,0.00011332,2]
[420112599,1775688640907,-200.0,0.00011341,2]
[420112600,1775688640917,-500.0,0.00011367,2]
[420112601,1775688640926,-200.0,0.00011446,2]
[420112602,1775688640935,-200.0,0.00011446,2]
[420112603,1775688640944,-8381.97455743,0.00011455,2]
[420112604,1775688640954,-600.0,0.00011579,2]
[420112605,1775688640963,-195.0,0.00011579,2]
[420112606,1775688640973,-195.0,0.00011579,2]
[420112607,1775688640983,-195.0,0.00011579,2]
[420112608,1775688640992,-312.07621303,0.00011579,2]
[420112609,1775688641002,-544.05,0.00011579,2]
[420112610,1775688641011,-250.0,0.00011579,2]
[420112611,1775688641021,-600.0,0.00011579,2]
[420112612,1775688641030,-600.0,0.00011579,2]
[420112613,1775688641039,-600.0,0.00011579,2]
[420112614,1775688641049,-600.0,0.00011579,2]
[420112615,1775688641058,-151.0,0.00011579,2]
[420112616,1775688641068,-151.0,0.00011579,2]
[420112617,1775688641077,-151.0,0.00011579,2]
[420112618,1775688641087,-151.0,0.00011579,2]
[420112619,1775688641096,-502.204556,0.00011579,2]
[420112620,1775688641106,-502.204556,0.00011579,2]
[420112621,1775688641115,-502.204556,0.00011579,2]
[420112622,1775688641125,-502.204556,0.00011579,2]
[420112623,1775688641135,-1680.0,0.00011579,2]
[420112624,1775688641143,-151.0,0.0001158,2]
[420112625,1775688641153,-5407.94777255,0.00011802,2]
[420112626,1775688641163,-6431.71194982,0.00011802,2]
[420112627,1775688641173,-255.0,0.00011851,2]
[420112628,1775688641183,-1390.91,0.00011907,2]
[420112629,1775688641193,-151.0,0.00011995,2]
[420112630,1775688641202,-5201.7,0.00011998,2]
[420112631,1775688641212,-151.0,0.00011998,2]
[420112632,1775688641222,-151.0,0.00011998,2]
[420112633,1775688641231,-268.249082,0.00011998,2]
[420112634,1775688641241,-150.0,0.00012,2]
[420112635,1775688641250,-629.9374137,0.00012011,2]
[420112636,1775688641260,-151.0,0.00012043,2]
[420112637,1775688641269,-151.0,0.00012043,2]
[420112638,1775688641279,-226.48042269,0.00012043,2]
[420112639,1775688641288,-151.0,0.00012046,2]
[420112640,1775688641298,-242.156968,0.00012046,2]
[420112641,1775688641308,-242.156968,0.00012046,2]
[420112642,1775688641317,-242.156968,0.00012046,2]
[420112643,1775688641327,-242.156968,0.00012046,2]
[420112644,1775688641336,-151.0,0.00012046,2]
[420112645,1775688641346,-151.0,0.00012046,2]
[420112646,1775688641356,-151.0,0.00012046,2]
[420112647,1775688641366,-151.0,0.00012046,2]
[420112648,1775688641375,-151.0,0.00012046,2]
[420112649,1775688641385,-151.0,0.00012046,2]
[420112650,1775688641394,-151.0,0.00012046,2]
[420112651,1775688641403,-151.0,0.00012046,2]
[420112652,1775688641414,-1159.37,0.00012082,2]
[420112653,1775688641423,-151.0,0.00012151,2]
[420112654,1775688641433,-242.156968,0.00012151,2]
[420112655,1775688641442,-242.156968,0.00012151,2]
[420112656,1775688641452,-242.156968,0.00012151,2]
[420112657,1775688641461,-242.156968,0.00012151,2]
[420112658,1775688641470,-151.0,0.00012151,2]
[420112659,1775688641480,-151.0,0.00012151,2]
[420112660,1775688641489,-151.0,0.00012151,2]
[420112661,1775688641499,-151.0,0.00012151,2]
[420112662,1775688641508,-151.0,0.00012151,2]
[420112663,1775688641518,-1600.0,0.00012192,2]
[420112664,1775688641528,-8381.97455743,0.00012196,2]
[420112665,1775688641537,-151.0,0.00012196,2]
[420112666,1775688641547,-2361.38,0.00012289,2]
[420112667,1775688641556,-5407.94777255,0.00012346,2]
[420112668,1775688641565,-6431.71194982,0.00012346,2]
[420112669,1775688641574,-151.0,0.00012366,2]
[420112670,1775688641584,-134016.5772165,0.00012366,2]
[420112671,1775688641593,-2000.0,0.00012369,2]
[420112672,1775688641602,-2947.3971336,0.00012416,2]
[420112673,1775688641612,-11878.44,0.0001247,2]
[420112674,1775688641621,-1020.21788766,0.00012519,2]
[420112675,1775688641631,-151.0,0.00012519,2]
[420112676,1775688641640,-151.0,0.00012519,2]
[420112677,1775688641650,-151.0,0.00012519,2]
[420112678,1775688641659,-202.766084,0.00012519,2]
[420112679,1775688641668,-502.204556,0.00012519,2]
[420112680,1775688641678,-502.204556,0.00012519,2]
[420112681,1775688642059,-502.204556,0.00012519,2]
[420112682,1775688642070,-502.204556,0.00012519,2]
[420112683,1775688642080,-151.0,0.00012567,2]
[420112684,1775688642090,-151.0,0.00012567,2]
[420112685,1775688642100,-151.0,0.00012567,2]
[420112686,1775688642109,-151.0,0.00012567,2]
[420112687,1775688642119,-502.204556,0.00012567,2]
[420112688,1775688642129,-502.204556,0.00012567,2]
[420112689,1775688642139,-502.204556,0.00012567,2]
[420112690,1775688642149,-502.204556,0.00012567,2]
[420112691,1775688642158,-168465.0067733,0.00012567,2]
[420112692,1775688642168,-77598.6074937,0.00012607,2]
[420112693,1775688642178,-151.0,0.00012607,2]
[420112694,1775688642187,-151.0,0.00012607,2]
[420112695,1775688642198,-151.0,0.00012607,2]
[420112696,1775688642208,-151.0,0.00012607,2]
[420112697,1775688642218,-502.204556,0.00012607,2]
[420112698,1775688642228,-502.204556,0.00012607,2]
[420112699,1775688642238,-502.204556,0.00012607,2]
[420112700,1775688642248,-502.204563,0.00012607,2]
[420112701,1775688642258,-151.61565668,0.00012609,2]
[420112702,1775688642268,-107433.7626967,0.00012619,2]
[420112703,1775688642278,-151.0,0.00012619,2]
[420112704,1775688642287,-151.0,0.00012619,2]
[420112705,1775688642298,-151.0,0.00012619,2]
[420112706,1775688642308,-151.0,0.00012619,2]
[420112707,1775688642318,-287.450998,0.00012619,2]
[420112708,1775688642328,-151.0,0.00012619,2]
[420112709,1775688642339,-2351.0,0.00012737,2]
[420112710,1775688642349,-5407.94777255,0.0001289,2]
[420112711,1775688642359,-6431.71194982,0.0001289,2]
[420112712,1775688642368,-1500.0,0.000129,4]
[420112713,1775688642378,-800.0,0.000129,4]
[420112714,1775688642388,-8381.97455743,0.00012937,2]
[420112715,1775688642398,-433.0,0.00012986,2]